fUST/lending_fUST_20240704
["ID","MTS","AMOUNT","RATE_DAILY","PERIOD"]
[331112519,1720086639839,-500.0,0.00014132,2]
[331112520,1720086639849,-500.0,0.00014132,2]
[331112521,1720086639860,-500.0,0.00014132,2]
[331112522,1720086640019,-339.18171505,0.00014132,2]
[331112523,1720086640030,-4679.41,0.00014132,2]
[331112524,1720086640040,-500.0,0.00014132,2]
[331112525,1720086640050,-500.0,0.00014132,2]
[331112526,1720086640061,-500.0,0.00014132,2]
[331112527,1720086640071,-500.0,0.00014132,2]
[331112528,1720086640081,-533.25597674,0.00014132,2]
[331112529,1720086640092,-506.88308617,0.00014132,2]
[331112530,1720086640103,-500.0,0.00014132,2]
[331112531,1720086640114,-500.0,0.00014132,2]
[331112532,1720086640124,-1849.64,0.00014132,2]
[331112533,1720086640134,-500.0,0.00014132,2]
[331112534,1720086640145,-500.0,0.00014132,2]
[331112535,1720086640154,-776.85,0.00014132,2]
[331112536,1720086640163,-500.0,0.00014132,2]
[331112537,1720086640173,-2509.95,0.00014132,2]
[331112538,1720086640183,-509.66017468,0.00014132,2]
[331112539,1720086640193,-1260.96,0.00014132,2]
[331112540,1720086640202,-500.0,0.00014132,2]
[331112541,1720086640213,-500.0,0.00014132,2]
[331112543,1720086640223,-500.0,0.00014132,2]
[331112544,1720086640233,-1120.86,0.00014132,2]
[331112545,1720086640244,-500.0,0.00014132,2]
[331112546,1720086640255,-500.0,0.00014132,2]
[331112547,1720086640264,-958.75,0.00014132,2]
[331112548,1720086640275,-533.97,0.00014132,2]
[331112549,1720086640285,-4872.74,0.00014132,2]
[331112550,1720086640295,-21846.3375702,0.00014133,2]
[331112551,1720086640305,-522.47134949,0.00014133,2]
[331112552,1720086640315,-497.66883589,0.00014133,2]
[331112553,1720086640325,-601.89,0.00014133,2]
[331112554,1720086640335,-505.27918505,0.00014133,2]
[331112555,1720086640345,-541.16192918,0.00014133,2]
[331112556,1720086640355,-500.0,0.00014133,2]
[331112557,1720086640365,-500.0,0.00014133,2]
[331112558,1720086640375,-708.25,0.00014133,2]
[331112559,1720086640385,-500.0,0.00014133,2]
[331112560,1720086640395,-500.0,0.00014133,2]
[331112561,1720086640405,-500.0,0.00014133,2]
[331112562,1720086640415,-500.0,0.00014133,2]
[331112563,1720086640425,-500.0,0.00014133,2]
[331112564,1720086640436,-500.0,0.00014133,2]
[331112565,1720086640445,-500.0,0.00014133,2]
[331112566,1720086640456,-500.0,0.00014133,2]
[331112567,1720086640466,-511.01435942,0.00014133,2]
[331112568,1720086640476,-500.0,0.00014133,2]
[331112572,1720086640486,-500.0,0.00014133,2]
[331112574,1720086640498,-500.0,0.00014133,2]
[331112575,1720086640509,-618.80056488,0.00014133,2]
[331112576,1720086640519,-500.0,0.00014133,2]
[331112577,1720086640530,-500.0,0.00014133,2]
[331112578,1720086640539,-500.0,0.00014133,2]
[331112579,1720086640549,-500.0,0.00014133,2]
[331112580,1720086640559,-500.0,0.00014133,2]
[331112581,1720086640569,-500.0,0.00014133,2]
[331112582,1720086640579,-500.0,0.00014133,2]
[331112583,1720086640588,-500.0,0.00014133,2]
[331112584,1720086640598,-508.90970429,0.00014133,2]
[331112585,1720086640608,-500.0,0.00014133,2]
[331112586,1720086640618,-500.0,0.00014133,2]
[331112587,1720086640628,-500.0,0.00014133,2]
[331112588,1720086640638,-500.0,0.00014133,2]
[331112589,1720086640648,-514.7034435,0.00014133,2]
[331112590,1720086640658,-500.0,0.00014133,2]
[331112591,1720086640668,-500.0,0.00014133,2]
[331112592,1720086640677,-500.0,0.00014133,2]
[331112593,1720086640687,-500.0,0.00014133,2]
[331112594,1720086640696,-500.0,0.00014133,2]
[331112595,1720086640706,-503.56208392,0.00014133,2]
[331112596,1720086640716,-500.0,0.00014133,2]
[331112598,1720086640726,-198.20603358,0.00014133,2]
[331112599,1720086640735,-500.0,0.00014133,2]
[331112601,1720086640746,-500.0,0.00014133,2]
[331112603,1720086640756,-500.0,0.00014133,2]
[331112605,1720086640766,-500.0,0.00014133,2]
[331112607,1720086640776,-500.0,0.00014133,2]
[331112609,1720086640786,-500.0,0.00014133,2]
[331112610,1720086640795,-500.0,0.00014133,2]
[331112611,1720086640805,-500.0,0.00014133,2]
[331112612,1720086640815,-500.0,0.00014133,2]
[331112613,1720086640826,-500.0,0.00014133,2]
[331112614,1720086640836,-500.0,0.00014133,2]
[331112615,1720086640846,-500.0,0.00014133,2]
[331112616,1720086640855,-500.0,0.00014133,2]
[331112617,1720086640865,-502.27523963,0.00014133,2]
[331112618,1720086640874,-500.0,0.00014133,2]
[331112619,1720086640884,-500.0,0.00014133,2]
[331112620,1720086640893,-501.14042304,0.00014133,2]
[331112621,1720086640902,-503.91901085,0.00014133,2]
[331112622,1720086640912,-500.0,0.00014133,2]
[331112623,1720086640921,-500.0,0.00014133,2]
[331112624,1720086640932,-500.0,0.00014133,2]
[331112625,1720086640943,-500.0,0.00014133,2]
[331112626,1720086640953,-500.0,0.00014133,2]
[331112628,1720086640962,-506.02086059,0.00014133,2]
[331112629,1720086640972,-500.0,0.00014133,2]
[331112631,1720086640981,-521.59,0.00014133,2]
[331112633,1720086640992,-500.0,0.00014133,2]
[331112635,1720086641001,-500.0,0.00014133,2]
[331112637,1720086641012,-500.0,0.00014133,2]
[331112638,1720086641021,-500.0,0.00014133,2]
[331112639,1720086641031,-500.0,0.00014133,2]
[331112640,1720086641041,-508.58408897,0.00014133,2]
[331112641,1720086641050,-500.0,0.00014133,2]
[331112642,1720086641059,-510.2042694,0.00014133,2]
[331112643,1720086641069,-500.0,0.00014133,2]
[331112644,1720086641078,-501.37314674,0.00014133,2]
[331112645,1720086641087,-500.0,0.00014133,2]
[331112646,1720086641096,-500.0,0.00014133,2]
[331112647,1720086641105,-500.0,0.00014133,2]
[331112648,1720086641114,-507.8980568,0.00014133,2]
[331112649,1720086641123,-500.0,0.00014133,2]
[331112650,1720086641132,-502.20541139,0.00014133,2]
[331112651,1720086641141,-500.0,0.00014133,2]
[331112652,1720086641150,-501.7906129,0.00014133,2]
[331112653,1720086641159,-500.0,0.00014133,2]
[331112654,1720086641169,-504.1670917,0.00014133,2]
[331112655,1720086641178,-500.0,0.00014133,2]
[331112656,1720086641187,-502.40125518,0.00014133,2]
[331112657,1720086641196,-500.0,0.00014133,2]
[331112658,1720086641205,-500.0,0.00014133,2]
[331112659,1720086641214,-500.0,0.00014133,2]
[331112660,1720086641224,-500.0,0.00014133,2]
[331112661,1720086641233,-500.0,0.00014133,2]
[331112662,1720086641244,-500.0,0.00014133,2]
[331112663,1720086641253,-500.0,0.00014133,2]
[331112664,1720086641262,-500.0,0.00014133,2]
[331112665,1720086641271,-500.0,0.00014133,2]
[331112666,1720086641280,-500.0,0.00014133,2]
[331112667,1720086641289,-500.0,0.00014133,2]
[331112668,1720086641298,-507.57568741,0.00014133,2]
[331112669,1720086641307,-500.0,0.00014133,2]
[331112670,1720086641316,-500.0,0.00014133,2]
[331112671,1720086641325,-500.0,0.00014133,2]
[331112672,1720086641335,-500.0,0.00014133,2]
[331112673,1720086641344,-188.04326466,0.00014133,2]
[331112674,1720086641354,-192.75110088,0.00014133,2]
[331112675,1720086641363,-500.0,0.00014133,2]
[331112676,1720086641372,-500.0,0.00014133,2]
[331112677,1720086641381,-500.0,0.00014133,2]
[331112678,1720086641390,-500.0,0.00014133,2]
[331112679,1720086641399,-500.0,0.00014133,2]
[331112680,1720086641408,-500.0,0.00014133,2]
[331112681,1720086641417,-500.0,0.00014133,2]
[331112682,1720086641426,-418.04521837,0.00014133,2]
[331112683,1720086641436,-500.0,0.00014133,2]
[331112684,1720086641445,-503.21149368,0.00014133,2]
[331112685,1720086641454,-500.0,0.00014133,2]
[331112686,1720086641463,-500.0,0.00014133,2]
[331112687,1720086641472,-500.0,0.00014133,2]
[331112688,1720086641481,-500.0,0.00014133,2]
[331112689,1720086641490,-500.0,0.00014133,2]
[331112690,1720086641499,-500.0,0.00014133,2]
[331112691,1720086641509,-500.0,0.00014133,2]
[331112692,1720086641518,-500.0,0.00014133,2]
[331112693,1720086641527,-500.0,0.00014133,2]
[331112694,1720086641536,-500.0,0.00014133,2]
[331112695,1720086641546,-503.60499942,0.00014133,2]
[331112696,1720086641555,-500.0,0.00014133,2]
[331112697,1720086641564,-500.0,0.00014133,2]
[331112698,1720086641573,-500.0,0.00014133,2]
[331112699,1720086641583,-500.0,0.00014133,2]
[331112700,1720086641592,-528.02903088,0.00014133,2]
[331112701,1720086641601,-501.74326954,0.00014133,2]
[331112702,1720086641610,-511.18468097,0.00014133,2]
[331112703,1720086641619,-507.28663487,0.00014133,2]
[331112704,1720086641628,-500.0,0.00014133,2]
[331112705,1720086641637,-500.0,0.00014133,2]
[331112706,1720086641646,-500.0,0.00014133,2]
[331112707,1720086641655,-501.5811919,0.00014134,2]
[331112708,1720086641664,-500.0,0.00014134,2]
[331112709,1720086641673,-558.58851713,0.00014134,2]
[331112710,1720086641682,-519.1,0.00014134,2]
[331112711,1720086641691,-500.0,0.00014134,2]
[331112712,1720086641700,-500.0,0.00014134,2]
[331112713,1720086641709,-500.0,0.00014134,2]
[331112714,1720086641718,-605.42,0.00014134,2]
[331112715,1720086641728,-500.0,0.00014134,2]
[331112716,1720086641737,-176.95698535,0.00014134,2]
[331112717,1720086641747,-500.0,0.00014134,2]
[331112718,1720086641756,-608.09,0.00014134,2]
[331112719,1720086641766,-500.0,0.00014134,2]
[331112720,1720086641775,-500.0,0.00014134,2]
[331112721,1720086641784,-500.0,0.00014134,2]
[331112722,1720086641793,-500.0,0.00014134,2]
[331112723,1720086641803,-500.0,0.00014134,2]
[331112724,1720086641812,-500.0,0.00014134,2]
[331112725,1720086641821,-71.79948554,0.00014134,2]
[331112726,1720086641836,-428.20051446,0.00014134,2]
[331112727,1720086641845,-500.0,0.00014134,2]
[331112728,1720086641854,-500.0,0.00014134,2]
[331112729,1720086641864,-500.0,0.00014134,2]
[331112730,1720086641873,-1223.37126065,0.00014135,2]
[331112765,1720086643875,-503.19231615,0.00014123,2]
[331112766,1720086643886,-500.0,0.00014123,2]
[331112767,1720086643897,-500.0,0.00014132,2]
[331112768,1720086643907,-2697.82873935,0.00014135,2]
[331112769,1720086643917,-834.12,0.00014135,2]
[331112770,1720086643927,-500.0,0.00014135,2]
[331112771,1720086643938,-574.87,0.00014135,2]
[331112772,1720086643949,-511.60778027,0.00014141,2]
[331112773,1720086643958,-500.0,0.00014141,2]
[331112774,1720086643968,-500.0,0.00014141,2]
[331112775,1720086643979,-500.0,0.00014141,2]
[331112777,1720086643989,-500.0,0.00014141,2]
[331112779,1720086644006,-500.0,0.00014141,2]
[331112781,1720086644017,-500.0,0.00014141,2]
[331112782,1720086644027,-500.0,0.00014141,2]
[331112783,1720086644038,-21794.5306251,0.00014145,2]
[331112784,1720086644048,-500.0,0.00014146,2]
[331112785,1720086644057,-500.0,0.00014146,2]
[331112786,1720086644067,-5040.88,0.00014146,2]
[331112787,1720086644076,-834.42,0.00014146,2]
[331112788,1720086644086,-579.93,0.00014146,2]
[331112789,1720086644096,-718.66,0.00014146,2]
[331112790,1720086644106,-4899.51,0.00014146,2]
[331112791,1720086644115,-2569.55,0.00014146,2]
[331112792,1720086644124,-500.0,0.00014155,2]
[331112793,1720086644134,-8483.37,0.00014155,2]
[331112794,1720086644143,-500.38,0.00014155,2]
[331112795,1720086644152,-700.08,0.00014155,2]
[331112796,1720086644162,-824.97,0.00014155,2]
[331112797,1720086644171,-500.0,0.00014155,2]
[331112798,1720086644180,-835.25,0.00014155,2]
[331112799,1720086644190,-888.25,0.00014155,2]
[331112800,1720086644199,-500.0,0.00014155,2]
[331112801,1720086644208,-2100.93380069,0.0001417,2]
[331112802,1720086644217,-2100.93380069,0.00014238,2]
[331112803,1720086644226,-2100.93380069,0.00014307,2]
[331112804,1720086644235,-21794.5306251,0.00014396,2]
[331112805,1720086644249,-504.19345201,0.00014397,2]
[331112806,1720086644259,-593.47883305,0.00014397,2]
[331112807,1720086644268,-500.0,0.00014397,2]
[331112808,1720086644278,-500.0,0.00014397,2]
[331112809,1720086644287,-500.0,0.00014397,2]
[331112810,1720086644297,-500.0,0.00014397,2]
[331112811,1720086644306,-500.0,0.00014397,2]
[331112812,1720086644316,-500.0,0.00014397,2]
[331112813,1720086644325,-500.0,0.00014397,2]
[331112814,1720086644334,-500.0,0.00014397,2]
[331112815,1720086644343,-512.41474097,0.00014397,2]
[331112816,1720086644352,-503.74093966,0.00014397,2]
[331112817,1720086644361,-504.90281223,0.00014397,2]
[331112818,1720086644370,-500.0,0.00014397,2]
[331112819,1720086644381,-2415.85,0.00014397,2]
[331112820,1720086644505,-641.16689608,0.00014397,2]
[331112821,1720086644515,-500.0,0.00014397,2]
[331112822,1720086644524,-767.41,0.00014397,2]
[331112823,1720086644534,-503.4547727,0.00014397,2]
[331112824,1720086644544,-14632.49,0.00014397,2]
[331112825,1720086644554,-515.19749725,0.00014397,2]
[331112826,1720086644563,-500.0,0.00014397,2]
[331112827,1720086644573,-21794.5306251,0.00014397,2]
[331112828,1720086644582,-21794.5306251,0.00014399,2]
[331112829,1720086644592,-964.58,0.00014406,2]
[331112830,1720086644602,-500.0,0.00014406,2]
[331112831,1720086644611,-500.0,0.00014406,2]
[331112833,1720086644621,-500.0,0.00014406,2]
[331112835,1720086644631,-1301.84,0.00014406,2]
[331112837,1720086644640,-500.0,0.00014406,2]
[331112838,1720086644649,-506.82116455,0.00014406,2]
[331112840,1720086644659,-500.0,0.00014406,2]
[331112842,1720086644668,-829.69,0.00014406,2]
[331112844,1720086644678,-1166.76,0.00014406,2]
[331112845,1720086644687,-500.0,0.00014406,2]
[331112846,1720086644696,-500.0,0.00014406,2]
[331112847,1720086644706,-712.66,0.00014406,2]
[331112848,1720086644715,-656.39,0.00014406,2]
[331112849,1720086644724,-500.0,0.00014406,2]
[331112850,1720086644734,-500.0,0.00014406,2]
[331112851,1720086644748,-500.0,0.00014406,2]
[331112852,1720086644757,-2618.93,0.00014406,2]
[331112853,1720086644767,-500.0,0.00014406,2]
[331112854,1720086644777,-500.0,0.00014406,2]
[331112855,1720086644787,-500.0,0.00014406,2]
[331112856,1720086644796,-500.0,0.00014406,2]
[331112857,1720086644805,-653.06,0.00014406,2]
[331112858,1720086644814,-1109.14,0.00014406,2]
[331112859,1720086644824,-676.7,0.00014406,2]
[331112860,1720086644834,-500.0,0.00014406,2]
[331112861,1720086644845,-1035.57,0.00014406,2]
[331112862,1720086644854,-500.0,0.00014406,2]
[331112863,1720086644864,-500.0,0.00014406,2]
[331112864,1720086644873,-500.0,0.00014406,2]
[331112865,1720086644883,-4679.41,0.00014406,2]
[331112866,1720086644892,-500.0,0.00014406,2]
[331112867,1720086644901,-500.0,0.00014406,2]
[331112868,1720086644910,-500.0,0.00014406,2]
[331112869,1720086644920,-500.0,0.00014406,2]
[331112870,1720086644931,-500.0,0.00014406,2]
[331112871,1720086644945,-500.0,0.00014406,2]
[331112872,1720086644955,-1849.64,0.00014406,2]
[331112873,1720086644965,-500.0,0.00014406,2]
[331112874,1720086644975,-500.0,0.00014406,2]
[331112875,1720086644987,-776.85,0.00014406,2]
[331112876,1720086645001,-500.0,0.00014406,2]
[331112877,1720086645010,-2509.95,0.00014406,2]
[331112878,1720086645019,-1260.96,0.00014406,2]
[331112879,1720086645029,-500.0,0.00014406,2]
[331112880,1720086645038,-500.0,0.00014406,2]
[331112881,1720086645047,-1120.86,0.00014406,2]
[331112882,1720086645057,-500.0,0.00014406,2]
[331112883,1720086645066,-500.0,0.00014406,2]
[331112884,1720086645075,-958.75,0.00014406,2]
[331112885,1720086645085,-533.97,0.00014406,2]
[331112886,1720086645094,-4872.74,0.00014406,2]
[331112887,1720086645103,-500.0,0.00014406,2]
[331112888,1720086645112,-601.89,0.00014407,2]
[331112889,1720086645122,-512.47194217,0.00014407,2]
[331112890,1720086645131,-500.0,0.00014407,2]
[331112891,1720086645141,-708.25,0.00014407,2]
[331112892,1720086645151,-500.0,0.00014407,2]
[331112893,1720086645160,-500.0,0.00014407,2]
[331112894,1720086645170,-500.0,0.00014407,2]
[331112895,1720086645179,-500.0,0.00014407,2]
[331112896,1720086645189,-500.0,0.00014407,2]
[331112897,1720086645198,-500.0,0.00014407,2]
[331112898,1720086645207,-500.0,0.00014407,2]
[331112899,1720086645217,-500.0,0.00014407,2]
[331112900,1720086645227,-500.0,0.00014407,2]
[331112901,1720086645236,-500.0,0.00014407,2]
[331112902,1720086645248,-500.0,0.00014407,2]
[331112903,1720086645257,-500.0,0.00014407,2]
[331112904,1720086645268,-500.0,0.00014407,2]
[331112905,1720086645277,-500.0,0.00014407,2]
[331112906,1720086645286,-500.0,0.00014407,2]
[331112907,1720086645296,-500.0,0.00014407,2]
[331112908,1720086645306,-500.0,0.00014407,2]
[331112909,1720086645316,-500.0,0.00014407,2]
[331112910,1720086645325,-604.48788169,0.00014407,2]
[331112911,1720086645335,-500.0,0.00014407,2]
[331112912,1720086645345,-500.0,0.00014407,2]
[331112913,1720086645354,-500.0,0.00014407,2]
[331112914,1720086645363,-500.0,0.00014407,2]
[331112915,1720086645373,-500.0,0.00014407,2]
[331112916,1720086645382,-500.0,0.00014407,2]
[331112917,1720086645392,-500.0,0.00014407,2]
[331112918,1720086645402,-500.0,0.00014407,2]
[331112919,1720086645411,-500.0,0.00014407,2]
[331112920,1720086645421,-500.0,0.00014407,2]
[331112921,1720086645431,-500.0,0.00014407,2]
[331112922,1720086645440,-503.76471199,0.00014407,2]
[331112923,1720086645450,-500.0,0.00014407,2]
[331112924,1720086645460,-500.0,0.00014407,2]
[331112925,1720086645469,-500.0,0.00014407,2]
[331112926,1720086645478,-561.2071717,0.00014407,2]
[331112927,1720086645488,-568.38722603,0.00014407,2]
[331112928,1720086645501,-521.59,0.00014407,2]
[331112929,1720086645510,-401.37770729,0.00014407,2]
[331112930,1720086645520,-500.0,0.00014407,2]
[331112931,1720086645529,-500.0,0.00014407,2]
[331112932,1720086645539,-277.01729115,0.00014407,2]
[331112933,1720086645549,-500.0,0.00014407,2]
[331112934,1720086645557,-500.0,0.00014407,2]
[331112935,1720086645567,-500.0,0.00014407,2]
[331112936,1720086645576,-500.0,0.00014407,2]
[331112937,1720086645586,-426.42579531,0.00014407,2]
[331112938,1720086645597,-500.0,0.00014407,2]
[331112939,1720086645610,-500.0,0.00014407,2]
[331112940,1720086645619,-199.22392977,0.00014407,2]
[331112941,1720086645629,-364.75902806,0.00014407,2]
[331112942,1720086645638,-500.0,0.00014407,2]
[331112943,1720086645647,-500.0,0.00014407,2]
[331112944,1720086645656,-357.72624738,0.00014407,2]
[331112945,1720086645666,-356.97583644,0.00014407,2]
[331112946,1720086645675,-573.59046043,0.00014407,2]
[331112947,1720086645684,-500.0,0.00014407,2]
[331112948,1720086645694,-500.0,0.00014407,2]
[331112949,1720086645704,-500.0,0.00014407,2]
[331112950,1720086645714,-500.0,0.00014407,2]
[331112951,1720086645723,-500.0,0.00014407,2]
[331112952,1720086645732,-500.0,0.00014407,2]
[331112953,1720086645742,-500.0,0.00014407,2]
[331112954,1720086645755,-500.0,0.00014407,2]
[331112955,1720086645765,-500.0,0.00014407,2]
[331112956,1720086645774,-500.0,0.00014407,2]
[331112957,1720086645787,-500.0,0.00014407,2]
[331112958,1720086645796,-586.44041,0.00014407,2]
[331112959,1720086645806,-500.0,0.00014407,2]
[331112960,1720086645815,-500.0,0.00014407,2]
[331112961,1720086645824,-441.91774279,0.00014407,2]
[331112962,1720086645833,-500.0,0.00014407,2]
[331112963,1720086645842,-500.0,0.00014407,2]
[331112964,1720086645852,-502.36667903,0.00014407,2]
[331112965,1720086645860,-500.0,0.00014407,2]
[331112966,1720086645869,-500.0,0.00014407,2]
[331112967,1720086645879,-500.0,0.00014407,2]
[331112968,1720086645888,-500.0,0.00014407,2]
[331112969,1720086645897,-500.0,0.00014407,2]
[331112970,1720086645907,-545.52357463,0.00014407,2]
[331112971,1720086645916,-500.0,0.00014407,2]
[331112972,1720086645925,-500.0,0.00014407,2]
[331112973,1720086645936,-500.0,0.00014407,2]
[331112974,1720086645948,-34105.11880293,0.00014408,2]
[331112975,1720086645958,-280.53433166,0.00014408,2]
[331112976,1720086645967,-519.1,0.00014408,2]
[331112977,1720086645978,-500.0,0.00014408,2]
[331112978,1720086645987,-500.0,0.00014408,2]
[331112979,1720086645999,-605.42,0.00014408,2]
[331112980,1720086646009,-608.09,0.00014408,2]
[331112981,1720086646019,-500.0,0.00014408,2]
[331112982,1720086646030,-500.0,0.00014408,2]
[331112983,1720086646040,-500.0,0.00014408,2]
[331112984,1720086646049,-500.0,0.00014408,2]
[331112985,1720086646058,-500.0,0.00014408,2]
[331112986,1720086646068,-330.99394844,0.00014408,2]
[331112987,1720086646078,-500.0,0.00014408,2]
[331112988,1720086646087,-500.0,0.00014408,2]
[331112989,1720086646098,-500.0,0.00014408,2]
[331112990,1720086646107,-3921.2,0.00014409,2]
[331112991,1720086646116,-834.12,0.00014409,2]
[331112992,1720086646126,-500.0,0.00014409,2]
[331112993,1720086646136,-574.87,0.00014409,2]
[331112995,1720086646145,-21794.5306251,0.0001441,2]
[331112997,1720086646154,-500.0,0.00014415,2]
[331113000,1720086646163,-500.0,0.00014415,2]
[331113003,1720086646172,-342.61697353,0.00014415,2]
[331113006,1720086646182,-296.47946959,0.00014415,2]
[331113008,1720086646191,-559.70959437,0.00014415,2]
[331113010,1720086646201,-162.352123,0.00014415,2]
[331113012,1720086646210,-155.06812,0.00014415,2]
[331113014,1720086646220,-151.0,0.00014415,2]
[331113015,1720086646229,-436.171564,0.00014415,2]
[331113017,1720086646239,-436.171564,0.00014415,2]
[331113019,1720086646248,-151.0,0.00014415,2]
[331113021,1720086646258,-151.0,0.00014415,2]
[331113023,1720086646267,-500.0,0.00014415,2]
[331113025,1720086646276,-505.68399511,0.00014415,2]
[331113027,1720086646285,-9952.87,0.00014416,2]
[331113029,1720086646295,-500.0,0.00014416,2]
[331113031,1720086646304,-500.0,0.0001442,2]
[331113033,1720086646313,-500.0,0.0001442,2]
[331113034,1720086646323,-5040.88,0.0001442,2]
[331113036,1720086646332,-834.42,0.0001442,2]
[331113038,1720086646343,-579.93,0.0001442,2]
[331113040,1720086646352,-718.66,0.0001442,2]
[331113042,1720086646362,-4899.51,0.0001442,2]
[331113044,1720086646372,-2569.55,0.0001442,2]
[331113046,1720086646381,-500.0,0.00014429,2]
[331113048,1720086646391,-8483.37,0.00014429,2]
[331113050,1720086646400,-500.38,0.00014429,2]
[331113052,1720086646410,-700.08,0.00014429,2]
[331113054,1720086646419,-824.97,0.00014429,2]
[331113057,1720086646429,-500.0,0.00014429,2]
[331113059,1720086646440,-835.25,0.00014429,2]
[331113061,1720086646449,-888.25,0.00014429,2]
[331113063,1720086646460,-417.065872,0.00014429,2]
[331113064,1720086646469,-417.065872,0.00014429,2]
[331113066,1720086646479,-151.0,0.00014429,2]
[331113068,1720086646487,-151.0,0.00014429,2]
[331113070,1720086646498,-500.0,0.00014429,2]
[331113073,1720086646507,-151.0,0.00014429,2]
[331113076,1720086646517,-151.0,0.00014429,2]
[331113079,1720086646526,-151.0,0.00014429,2]
[331113082,1720086646536,-166.729659,0.00014429,2]
[331113084,1720086646545,-151.0,0.00014429,2]
[331113086,1720086646554,-151.0,0.00014429,2]
[331113088,1720086646563,-1607.060044,0.00014429,2]
[331113090,1720086646573,-194.703043,0.00014429,2]
[331113092,1720086646583,-1607.060044,0.00014429,2]
[331113094,1720086646592,-151.0,0.00014429,2]
[331113095,1720086646602,-650.9003212,0.0001444,2]
[331113096,1720086646611,-151.0,0.0001449,2]
[331113097,1720086646620,-20349.03266007,0.000145,2]
[331113098,1720086646629,-151.0,0.00014661,2]
[331113099,1720086646639,-151.0,0.00014661,2]
[331113100,1720086646648,-246.043137,0.00014669,2]
[331113101,1720086646658,-436.171564,0.00014669,2]
[331113102,1720086646667,-436.171564,0.00014669,2]
[331113103,1720086646677,-151.0,0.00014669,2]
[331113104,1720086646687,-151.0,0.00014669,2]
[331113105,1720086646697,-43589.0612503,0.0001467,2]
[331113106,1720086646707,-500.0,0.00014671,2]
[331113107,1720086646716,-500.0,0.00014671,2]
[331113108,1720086646727,-500.0,0.00014671,2]
[331113109,1720086646736,-247.00964311,0.00014671,2]
[331113110,1720086646745,-500.0,0.00014671,2]
[331113111,1720086646755,-500.0,0.00014671,2]
[331113112,1720086646765,-500.0,0.00014671,2]
[331113113,1720086646774,-2415.85,0.00014671,2]
[331113114,1720086646783,-500.0,0.00014671,2]
[331113115,1720086646792,-767.41,0.00014671,2]
[331113116,1720086646801,-14632.49,0.00014671,2]
[331113117,1720086646812,-500.0,0.00014671,2]
[331113118,1720086646821,-21794.5306251,0.00014672,2]
[331113119,1720086646831,-964.58,0.0001468,2]
[331113120,1720086646840,-500.0,0.0001468,2]
[331113121,1720086646849,-500.0,0.0001468,2]
[331113122,1720086646859,-500.0,0.0001468,2]
[331113123,1720086646869,-1301.84,0.0001468,2]
[331113124,1720086646879,-500.0,0.0001468,2]
[331113125,1720086646889,-151.0,0.0001468,2]
[331113126,1720086646898,-151.84498,0.0001468,2]
[331113127,1720086646908,-500.0,0.0001468,2]
[331113128,1720086646917,-208.048076,0.0001468,2]
[331113130,1720086646928,-208.048076,0.0001468,2]
[331113131,1720086646948,-829.69,0.0001468,2]